bitfinex/quotes_ETHUSD_20251213
["timestamp","ask_amount","ask_price","bid_price","bid_amount"]
[1765663466455,0.1969,3121.2,3121.0,0.58047529]
[1765663466621,0.40359595,3121.1,3120.9,0.58047529]
[1765663466821,0.29839458,3121.0,3120.5,0.4902]
[1765663467058,0.29839458,3120.9,3120.6,3.20449976]
[1765663467284,0.1969,3120.6,3120.4,0.508]
[1765663467432,0.40359458,3120.5,3119.9,0.1912]
[1765663467745,0.196,3120.0,3119.9,0.6814]
[1765663468069,0.49439458,3120.0,3119.6,3.20549981]
[1765663468267,0.29839458,3119.9,3119.6,3.20549981]
[1765663468439,0.196,3120.0,3119.6,3.20549981]
[1765663468625,0.29869035,3119.9,3119.6,3.20549981]
[1765663468827,0.196,3120.0,3119.6,3.20549981]
[1765663469025,0.29869034,3119.9,3119.6,3.20549981]
[1765663469255,3.40162775,3120.4,3119.6,3.69569981]
[1765663469471,0.29875393,3120.3,3119.8,0.405504]
[1765663469795,0.29868423,3121.1,3120.0,0.405504]
[1765663469965,0.29868423,3121.0,3120.2,0.4756]
[1765663470129,0.29868423,3120.9,3120.2,0.4756]
[1765663470331,3.20370754,3121.4,3120.3,0.4902]
[1765663470542,0.29864076,3121.3,3120.8,0.4756]
[1765663470830,0.29864076,3121.2,3120.8,0.4756]
[1765663471033,3.20370754,3121.4,3120.8,0.4756]
[1765663471034,0.29864076,3121.1,3120.8,0.4756]
[1765663471227,0.509,3121.5,3120.8,0.4756]
[1765663471228,0.29864076,3121.0,3120.8,0.4756]
[1765663471434,0.29864598,3120.9,3120.8,0.4756]
[1765663471827,0.29864598,3120.9,3120.8,0.9658]
[1765663472158,3.20369082,3121.4,3120.8,0.9658]
[1765663472365,0.66986273,3121.3,3120.8,0.9658]
[1765663472564,0.29859365,3121.2,3120.8,0.9658]
[1765663472852,0.29859365,3121.1,3120.8,4.17008694]
[1765663473059,0.29859365,3121.0,3120.9,0.96235121]
[1765663473253,3.20369821,3121.4,3120.9,0.96235121]
[1765663473456,0.29853864,3121.3,3120.9,0.96235121]
[1765663473669,0.29853864,3121.2,3120.9,0.96235121]
[1765663473973,0.29853864,3121.1,3120.8,3.20430499]
[1765663474270,6.77865396,3121.4,3120.5,0.4902]
[1765663474457,0.49542336,3121.3,3120.3,3.78521972]
[1765663474656,1.02593109,3121.2,3120.5,0.58047529]
[1765663474874,0.29852336,3121.1,3120.4,0.58047529]
[1765663475074,0.29852336,3121.0,3120.3,3.20480629]
[1765663475260,0.509,3121.0,3120.5,3.20454941]
[1765663475467,0.29854707,3120.9,3120.2,0.4902]
[1765663475774,0.509,3121.0,3120.4,3.20470439]
[1765663475977,0.29854863,3120.9,3120.3,3.78529533]
[1765663476177,0.509,3121.0,3120.3,3.78529533]
[1765663476469,0.509,3121.0,3120.3,6.99011537]
[1765663477172,0.80754462,3121.0,3120.3,6.99011537]
[1765663478070,0.80754462,3121.0,3120.3,3.78529533]
[1765663478374,0.509,3121.0,3120.3,3.78529533]
[1765663479554,0.509,3121.0,3120.3,6.99011537]
[1765663479756,0.509,3121.0,3120.3,7.48031537]
[1765663480679,0.509,3121.0,3120.3,7.75690691]
[1765663480851,0.509,3121.0,3120.4,0.4902]
[1765663482272,3.71311704,3121.0,3120.4,3.20463968]
[1765663482779,0.509,3121.0,3120.4,3.20463968]
[1765663482977,0.509,3121.0,3120.1,0.1876]
[1765663482978,0.1969,3120.5,3120.1,0.1876]
[1765663483188,0.1969,3120.5,3120.3,0.58047529]
[1765663483647,0.1969,3120.9,3120.3,0.58047529]
[1765663483848,0.90831053,3120.9,3120.3,0.58047529]
[1765663484483,0.1969,3120.4,3119.7,0.4902]
[1765663484668,0.1052,3120.3,3119.7,0.4902]
[1765663485183,0.1052,3120.3,3119.7,3.69562627]
[1765663485357,0.1052,3120.3,3120.0,3.20511967]
[1765663485555,0.508,3120.4,3120.0,3.20511967]
[1765663485755,0.508,3120.4,3120.0,3.69531967]
[1765663486355,0.508,3120.4,3120.0,0.4902]
[1765663486986,0.508,3120.4,3119.8,0.4902]
[1765663487879,0.508,3120.4,3119.7,0.58047529]
[1765663488195,0.87926583,3120.4,3119.7,0.58047529]
[1765663488356,4.08400638,3120.4,3119.7,0.58047529]
[1765663489049,4.28090638,3120.4,3119.7,3.78590983]
[1765663490162,7.48564693,3120.4,3119.6,0.4902]
[1765663490485,0.1969,3120.3,3119.3,0.4902]
[1765663490656,7.28874693,3120.4,3119.3,0.4902]
[1765663490988,6.40984552,3120.2,3119.2,0.1815]
[1765663491200,0.29919944,3120.1,3119.2,0.1815]
[1765663491382,1.00409944,3120.0,3119.2,0.1815]
[1765663491700,0.7049,3120.0,3119.2,0.76197529]
[1765663491861,0.0549,3119.9,3119.2,0.1815]
[1765663492061,0.0549,3119.9,3119.3,3.20583402]
[1765663492263,0.35430505,3119.9,3119.3,3.20583402]
[1765663493279,0.35430505,3119.9,3118.7,0.002]
[1765663493280,0.1969,3119.4,3118.7,0.002]
[1765663493478,0.96207233,3119.3,3118.7,3.20843116]
[1765663493681,0.6627,3119.3,3118.7,3.20843116]
[1765663493878,0.6627,3119.3,3118.7,0.002]
[1765663495572,3.86862965,3119.3,3118.7,0.002]
[1765663496586,0.6627,3119.3,3118.7,0.002]
[1765663496791,0.508,3119.2,3118.8,0.4856]
[1765663496989,3.40210957,3120.0,3118.8,0.4856]
[1765663497201,3.71336729,3119.8,3119.3,0.4797]
[1765663497503,3.71336729,3119.8,3119.2,0.1822]
[1765663497504,0.1969,3119.4,3119.0,0.4856]
[1765663498367,0.7049,3119.4,3119.0,0.4856]
[1765663500002,0.1547,3119.1,3118.7,3.89847591]
[1765663500487,3.91064894,3119.4,3118.8,3.69194761]
[1765663500488,3.71374894,3119.4,3118.8,3.69194761]
[1765663500672,0.508,3119.4,3119.0,3.20615234]
[1765663501068,0.508,3119.4,3119.1,0.1822]
[1765663501388,0.508,3119.4,3119.3,0.4797]
[1765663501595,0.508,3120.1,3119.3,0.4797]
[1765663501792,1.39666401,3120.1,3119.3,0.4797]
[1765663501997,0.1969,3119.4,3118.7,1.75815352]
[1765663502198,6.90583568,3120.0,3118.8,0.58047529]
[1765663502199,0.1547,3119.2,3118.8,0.58047529]
[1765663502587,0.1547,3119.2,3118.7,3.69406377]
[1765663502790,0.1547,3119.2,3118.7,0.4876]
[1765663502969,0.1547,3119.2,3118.7,0.002]
[1765663503670,0.508,3119.3,3118.7,3.69398854]
[1765663504098,0.508,3119.3,3118.8,0.4856]
[1765663504294,3.20543642,3119.7,3118.8,0.4856]
[1765663504500,0.509,3119.6,3119.2,0.4797]
[1765663506195,0.509,3119.5,3119.2,0.4797]
[1765663507097,0.1969,3119.3,3118.9,0.4856]
[1765663508201,0.1969,3119.3,3118.9,3.69181949]
[1765663508405,0.1969,3119.3,3119.0,0.4856]
[1765663508700,0.66076896,3119.7,3119.2,0.4797]
[1765663508881,0.509,3119.6,3119.2,0.4797]
[1765663509283,0.509,3119.6,3119.2,0.9653]
[1765663509597,0.29879332,3119.8,3119.2,0.9653]
[1765663509798,0.508,3119.5,3119.2,0.9653]
[1765663510298,0.508,3119.5,3119.2,0.4797]
[1765663510705,3.71365504,3119.5,3119.2,0.4797]
[1765663510890,0.508,3119.5,3119.2,0.4797]
[1765663511096,3.71366066,3119.5,3119.2,0.4797]
[1765663511307,0.508,3119.5,3119.2,0.4797]
[1765663511693,0.508,3119.5,3119.2,0.9653]
[1765663512188,0.508,3119.5,3119.0,3.20614641]
[1765663512189,0.1969,3119.3,3118.7,0.4876]
[1765663512394,0.1969,3119.3,3118.8,0.4856]
[1765663512793,3.7136651,3119.5,3118.8,0.4856]
[1765663512990,0.508,3119.5,3118.8,0.4856]
[1765663513202,0.508,3119.5,3119.4,0.4797]
[1765663513911,0.7049,3119.5,3119.2,0.1822]
[1765663514304,0.1547,3119.3,3119.0,0.4856]
[1765663514507,0.1547,3119.3,3118.9,3.20621482]
[1765663514831,0.1547,3119.3,3118.7,4.27447365]
[1765663514832,0.1965,3119.0,3118.7,4.27447365]
[1765663515113,0.1969,3119.3,3118.7,4.64387899]
[1765663515290,0.29949509,3119.4,3118.7,4.64387899]
[1765663516002,0.58047529,3120.1,3119.3,0.4797]
[1765663516201,0.29948946,3120.0,3119.4,0.4797]
[1765663516402,0.80748946,3119.9,3119.4,7.37678875]
[1765663516715,0.508,3119.8,3119.4,6.89708875]
[1765663516884,0.29954602,3120.1,3119.5,0.4856]
[1765663517082,0.80754602,3120.0,3119.7,0.4797]
[1765663517330,0.29962768,3119.9,3119.7,0.4797]
[1765663517487,0.508,3120.0,3119.8,0.4856]
[1765663517812,0.508,3120.0,3119.9,0.4797]
[1765663518119,0.80761924,3120.0,3119.9,0.4797]
[1765663518312,0.80761924,3120.0,3119.9,0.9653]
[1765663519714,4.40656748,3120.0,3119.1,3.38815497]
[1765663519914,0.8088073,3119.9,3119.1,1.0066155]
[1765663520211,6.40943468,3120.4,3119.2,6.89748516]
[1765663520386,0.509,3120.3,3119.2,6.89748516]
[1765663520586,0.509,3120.3,3119.3,0.4856]
[1765663520821,0.509,3120.2,3119.3,0.4856]
[1765663522722,0.509,3120.1,3119.4,3.20574469]
[1765663522921,0.509,3120.1,3119.4,0.4856]
[1765663523909,0.51802488,3120.1,3119.3,3.20583313]
[1765663524114,0.509,3120.1,3119.3,3.20583313]
[1765663524321,1.20088455,3120.1,3119.3,3.20583313]
[1765663524820,3.2051282,3120.0,3119.2,3.20595024]
[1765663525112,3.2051282,3120.0,3119.2,3.69155024]
[1765663525698,6.4102564,3120.0,3119.2,3.69155024]
[1765663525907,0.76111409,3119.9,3119.2,3.69155024]
[1765663526102,3.2051282,3120.0,3119.2,3.69155024]
[1765663527010,6.4102564,3120.0,3119.2,3.69155024]
[1765663527323,3.2051282,3120.0,3119.2,3.69155024]
[1765663531826,0.30004928,3119.9,3119.2,3.69155024]
[1765663532128,0.30004928,3119.8,3119.2,3.69155024]
[1765663532302,0.80904928,3119.7,3119.2,3.69155024]
[1765663532502,0.30004928,3119.6,3119.2,4.39952936]
[1765663532704,0.30004928,3119.5,3119.2,4.36662936]
[1765663533027,0.509,3119.7,3119.2,4.36662936]
[1765663533226,0.30004959,3119.6,3119.2,4.36662936]
[1765663533409,0.30004959,3119.5,3119.2,4.36662936]
[1765663533725,0.509,3119.7,3119.2,4.36662936]
[1765663533928,0.30010255,3119.6,3119.2,4.36662936]
[1765663534131,0.30010255,3119.5,3119.2,3.91392936]
[1765663534338,0.509,3119.7,3119.2,3.91392936]
[1765663534533,0.30014058,3119.6,3119.2,4.36662936]
[1765663534703,0.30014058,3119.5,3119.3,0.4527]
[1765663535023,0.509,3119.7,3119.3,0.4527]
[1765663535221,0.30013316,3119.6,3119.3,0.4527]
[1765663535409,0.30013316,3119.5,3119.3,3.65849384]
[1765663535611,0.509,3119.7,3119.3,3.65849384]
[1765663535907,0.30015031,3119.6,3119.3,3.65849384]
[1765663536094,0.30015031,3119.5,3119.3,3.65849384]
[1765663536295,0.509,3119.7,3119.3,3.65849384]
[1765663536520,0.30017375,3119.6,3119.3,3.65849384]
[1765663536699,0.30017375,3119.5,3119.2,3.91386441]
[1765663536900,0.509,3119.7,3119.3,0.4527]
[1765663537099,0.30017375,3119.6,3119.3,0.4527]
[1765663537301,0.30017375,3119.5,3119.3,0.4527]
[1765663537502,0.509,3119.7,3119.2,3.91386441]
[1765663537750,0.30020084,3119.6,3119.1,0.1944]
[1765663537957,0.30020084,3119.5,3119.1,0.1944]
[1765663538231,0.30020084,3119.4,3119.2,3.20594277]
[1765663538529,0.508,3119.6,3119.2,3.20594277]
[1765663538702,0.30025017,3119.5,3119.3,0.4527]
[1765663538902,0.30025017,3119.4,3119.3,0.4527]
[1765663539615,0.30025017,3119.4,3119.3,0.9028]
[1765663540828,0.30026705,3119.4,3119.3,4.1086245]
[1765663544130,3.20473644,3120.4,3119.3,8.78735827]
[1765663544343,0.508,3120.1,3119.8,0.4501]
[1765663544544,0.30032644,3120.0,3119.8,0.4501]
[1765663544851,0.30032644,3119.9,3119.8,0.9028]
[1765663545209,0.30032644,3119.9,3119.5,3.20562503]
[1765663545536,0.30032644,3119.8,3119.5,3.20562503]
[1765663545735,0.30032644,3119.7,3119.3,3.20584162]
[1765663546032,0.30032644,3119.6,3119.4,3.59690707]
[1765663546213,0.30039573,3119.5,3119.4,3.20573092]
[1765663546415,0.30039573,3119.5,3119.4,3.65843092]
[1765663546620,0.30039573,3119.5,3119.4,4.10853092]
[1765663548606,0.30039573,3119.5,3119.4,0.9028]
[1765663548813,0.30039573,3119.5,3119.4,0.4501]
[1765663549443,0.30039573,3119.5,3119.4,3.65584469]
[1765663549637,0.30039573,3119.5,3119.4,0.4501]
[1765663549937,0.30039573,3119.5,3119.3,3.20580292]
[1765663550138,0.508,3119.7,3119.4,3.20574469]
[1765663550345,0.3005024,3119.6,3119.4,3.20574469]
[1765663550639,0.3005024,3119.5,3119.4,3.20574469]
[1765663551243,0.3005024,3119.5,3119.3,3.20584746]
[1765663551446,0.508,3119.7,3119.3,3.20584746]
[1765663551755,0.30050137,3119.6,3119.3,4.3772146]
[1765663551968,0.30050137,3119.5,3119.3,4.3772146]
[1765663552122,0.508,3119.7,3119.3,4.3772146]
[1765663552322,0.30050032,3119.6,3119.3,4.3772146]
[1765663552554,0.30050032,3119.5,3119.3,4.3772146]
[1765663552732,0.508,3119.7,3119.3,4.3772146]
[1765663553059,0.30050032,3119.6,3119.3,4.3772146]
[1765663553348,0.30050032,3119.5,3119.3,4.3772146]
[1765663553551,0.508,3119.7,3119.3,4.3772146]
[1765663553750,0.3004994,3119.6,3119.3,4.3772146]
[1765663553958,0.3004994,3119.5,3119.4,0.4527]
[1765663554666,0.3004994,3119.5,3119.3,3.9245146]
[1765663554848,0.508,3119.7,3119.3,4.3772146]
[1765663555036,0.30049514,3119.6,3119.3,4.3772146]
[1765663555331,0.30049514,3119.5,3119.3,4.3772146]
[1765663555558,0.508,3119.7,3119.3,4.3772146]
[1765663555723,0.30049087,3119.6,3119.3,3.9245146]
[1765663555923,0.30049087,3119.5,3119.3,3.9245146]
[1765663556152,0.508,3119.7,3119.3,3.9245146]
[1765663556323,0.30048704,3119.6,3119.3,3.20584746]
[1765663556523,0.30048704,3119.5,3119.3,3.20584746]
[1765663556717,0.508,3119.7,3119.3,3.20584746]
[1765663556926,0.30048693,3119.6,3119.3,3.20584746]
[1765663557134,0.30048693,3119.5,3119.3,3.20584746]
[1765663557322,0.508,3119.7,3119.3,3.20584746]
[1765663557520,0.30048431,3119.6,3119.3,3.20584746]
[1765663557720,0.30048431,3119.5,3119.3,3.20584746]
[1765663557953,0.508,3119.7,3119.3,3.20584746]
[1765663558147,0.30048421,3119.6,3119.3,3.66024746]
[1765663558346,0.30048421,3119.5,3119.3,3.66024746]
[1765663558553,0.508,3119.7,3119.3,3.66024746]
[1765663558850,0.30048191,3119.6,3119.3,3.66024746]
[1765663559049,0.30048191,3119.5,3119.3,3.66024746]
[1765663559350,0.508,3119.7,3119.3,3.20584746]
[1765663559522,0.508,3119.7,3119.1,3.85484602]
[1765663559523,0.30048293,3119.6,3119.2,3.2059324]
[1765663559716,0.30048293,3119.5,3119.2,3.2059324]
[1765663559945,0.30048293,3119.4,3119.1,3.20602333]
[1765663560152,0.30048293,3119.3,3119.1,3.20602333]
[1765663560353,0.508,3119.7,3119.1,3.20602333]
[1765663560542,0.30049444,3119.6,3119.1,3.20602333]
[1765663560743,0.30049444,3119.5,3119.1,3.20602333]
[1765663560942,0.30049444,3119.4,3119.1,3.20602333]
[1765663561121,0.30049444,3119.3,3119.1,3.20602333]
[1765663561326,0.508,3119.7,3119.1,3.20602333]
[1765663561537,0.30049093,3119.6,3119.1,3.20602333]
[1765663561737,0.30049093,3119.5,3119.0,0.4544]
[1765663561955,1.34737175,3119.7,3119.0,0.4544]
[1765663561956,0.30049093,3119.4,3119.0,0.4544]
[1765663562133,0.30049093,3119.3,3119.0,0.4544]
[1765663562322,0.508,3119.7,3119.0,0.4544]
[1765663562527,0.30048757,3119.6,3119.0,0.4544]
[1765663562855,0.30048757,3119.5,3119.0,0.4544]
[1765663563053,0.508,3119.7,3119.1,0.191]
[1765663563054,0.30048757,3119.4,3119.1,0.191]
[1765663563350,0.30048757,3119.3,3119.1,0.191]
[1765663563527,0.508,3119.7,3119.1,0.6454]
[1765663563727,0.30048431,3119.6,3119.2,3.20595024]
[1765663563950,0.30048431,3119.5,3119.2,3.20595024]
[1765663564148,0.30048431,3119.4,3119.2,3.20595024]
[1765663564454,0.30048431,3119.3,3119.2,3.20595024]
[1765663564839,0.30048431,3119.3,3119.2,3.67795024]
[1765663565156,0.30048431,3119.3,3119.2,3.20595024]
[1765663565859,0.30048431,3119.3,3119.2,0.472]
[1765663566027,0.30048431,3119.3,3119.2,0.9264]
[1765663567330,0.30048431,3119.3,3119.2,4.13235024]
[1765663579662,0.30048431,3119.3,3119.2,3.67795024]
[1765663581047,0.30048431,3119.3,3119.2,4.13235024]
[1765663583268,0.30048431,3119.3,3119.2,3.67795024]
[1765663583653,0.30048431,3119.3,3119.1,3.20598793]
[1765663583857,0.30048431,3119.2,3119.1,3.20598793]
[1765663584243,0.30048431,3119.2,3118.9,3.20615901]
[1765663584436,0.30048431,3119.1,3118.9,3.20615901]
[1765663584640,0.508,3119.5,3118.9,3.20615901]
[1765663584850,0.30052924,3119.4,3118.9,3.20615901]
[1765663585150,0.30052924,3119.3,3118.9,3.20615901]
[1765663585352,0.30052924,3119.2,3118.9,3.20615901]
[1765663585670,0.30052924,3119.1,3118.9,3.20615901]
[1765663585853,0.508,3119.5,3118.9,3.20615901]
[1765663586046,0.30053664,3119.4,3118.7,0.002]
[1765663586252,0.30053664,3119.3,3118.7,0.002]
[1765663586451,0.30053664,3119.2,3118.7,0.002]
[1765663586751,0.30053664,3119.1,3118.7,0.002]
[1765663586953,0.30053664,3119.0,3118.7,0.002]
[1765663587154,0.30053664,3118.9,3118.7,0.002]
[1765663587383,3.71368595,3119.5,3118.7,0.002]
[1765663587577,1.46033978,3119.4,3118.7,0.002]
[1765663587777,0.30042685,3119.3,3118.7,0.002]
[1765663588076,0.30042685,3119.2,3118.7,0.002]
[1765663588247,0.30042685,3119.1,3118.7,0.002]
[1765663588449,0.30042685,3119.0,3118.7,0.002]
[1765663588680,0.30042685,3118.9,3118.7,0.002]
[1765663588880,1.15991293,3119.4,3118.7,3.20846423]
[1765663589183,0.3003799,3119.3,3118.7,3.20846423]
[1765663589476,0.3003799,3119.2,3118.7,3.20846423]
[1765663589639,0.3003799,3119.1,3118.7,3.20846423]
[1765663589839,0.3003799,3119.0,3118.7,3.20846423]
[1765663590043,0.3003799,3118.9,3118.7,3.20846423]
[1765663590282,1.15991293,3119.4,3118.7,3.20846423]
[1765663590448,0.30030609,3119.3,3118.7,3.20846423]
[1765663590649,0.30030609,3119.2,3118.7,3.20846423]
[1765663590850,0.30030609,3119.1,3118.7,3.20846423]
[1765663591053,0.30030609,3119.0,3118.7,3.20846423]
[1765663591247,0.30030609,3118.9,3118.7,3.20846423]
[1765663591447,1.15991293,3119.4,3118.7,3.20846423]
[1765663591647,0.3002722,3119.3,3118.7,3.20846423]
[1765663591847,0.3002722,3119.2,3118.7,3.68766423]
[1765663592074,0.3002722,3119.1,3118.7,3.68766423]
[1765663592285,1.15991293,3119.4,3118.7,3.68766423]
[1765663592286,0.3002722,3119.0,3118.7,3.68766423]
[1765663592490,0.3002722,3118.9,3118.7,3.68766423]
[1765663592790,3.7136827,3119.5,3118.8,0.4792]
[1765663593081,1.13960251,3119.4,3118.8,0.9649]
[1765663593283,0.30024467,3119.3,3118.9,3.20625861]
[1765663593583,0.30024467,3119.2,3118.9,3.20625861]
[1765663593789,0.30024467,3119.1,3118.9,3.20625861]
[1765663593953,0.30024467,3119.0,3118.9,3.20625861]
[1765663594356,0.30024467,3119.0,3118.9,4.16933892]
[1765663594967,0.30024467,3119.0,3118.9,5.91993924]
[1765663595168,0.507,3119.4,3118.9,9.12619785]
[1765663595386,0.30018713,3119.3,3119.0,0.4792]
[1765663595572,0.30018713,3119.2,3119.0,0.4792]
[1765663595883,0.507,3119.4,3119.1,0.96298139]
[1765663596054,0.30018555,3119.3,3119.1,0.96298139]
[1765663596255,0.30018555,3119.2,3119.1,0.96298139]
[1765663596883,0.30018555,3119.2,3119.1,4.16903441]
[1765663604090,0.30018555,3119.2,3119.1,0.96298139]
[1765663604987,0.30018555,3119.2,3119.1,4.16903441]
[1765663618507,0.30018555,3119.2,3119.1,0.96298139]
[1765663622021,3.50613579,3119.2,3119.1,0.96298139]
[1765663622227,12.58264024,3119.2,3118.7,0.002]
[1765663622383,4.68059671,3118.9,3118.7,0.002]
[1765663622583,0.80718555,3118.8,3118.7,0.002]
[1765663629817,4.01354697,3118.8,3118.7,0.002]
[1765663630126,0.30018555,3118.8,3118.7,0.9567]
[1765663630313,0.80718555,3118.8,3118.7,0.9567]
[1765663632225,0.30018555,3118.8,3118.7,0.9567]
[1765663632830,0.30018555,3118.8,3118.7,0.4739]
[1765663642217,0.30018555,3118.8,3118.7,1.4371009]
[1765663642551,0.30018555,3118.8,3118.7,0.4739]
[1765663645334,0.30018555,3118.8,3118.7,0.002]
[1765663650448,0.30049767,3118.8,3118.7,0.002]
[1765663653763,0.70187475,3118.8,3118.7,0.002]
[1765663653930,3.90823617,3118.8,3118.7,0.002]
[1765663657497,3.90836035,3118.8,3118.7,0.002]
[1765663664792,0.70199893,3118.8,3118.7,0.002]
[1765663664998,0.70199893,3118.8,3118.7,0.4658]
[1765663665156,0.30062185,3118.8,3118.7,0.9349]
[1765663670177,0.30964673,3118.8,3118.7,0.002]
[1765663670389,0.30062185,3118.8,3118.7,0.002]
[1765663671755,0.30042782,3118.8,3118.7,0.002]
[1765663673549,3.50678924,3118.8,3118.7,0.002]
[1765663673880,1.49058509,3118.8,3118.7,0.002]
[1765663674561,9.37855158,3118.8,3118.7,0.002]
[1765663675862,1.49058509,3118.8,3118.7,0.002]
[1765663676064,0.30042782,3118.8,3118.7,0.002]
[1765663683780,0.30050628,3118.8,3118.7,0.002]
[1765663685584,4.98211135,3118.8,3118.7,0.002]
[1765663685888,8.18847277,3118.8,3118.7,0.002]
[1765663690291,0.30050628,3118.8,3118.7,0.481]
[1765663690497,4.0138677,3118.8,3118.7,0.002]
[1765663691592,4.79482992,3118.8,3118.7,0.002]
[1765663691776,4.8038548,3118.8,3118.7,0.002]
[1765663691976,4.79482992,3118.8,3118.7,0.002]
[1765663694094,4.8038548,3118.8,3118.7,0.002]
[1765663695165,35.15183516,3118.8,3118.7,0.002]
[1765663695504,22.37360421,3118.8,3118.7,0.002]
[1765663695969,27.54957952,3118.8,3118.7,0.002]
[1765663696466,26.977196,3118.5,3118.0,0.002]
[1765663696665,20.3166166,3118.1,3118.0,0.002]
[1765663696889,20.61712288,3118.1,3118.0,0.002]
[1765663697096,20.74560865,3118.1,3118.0,0.002]
[1765663697592,29.09769865,3118.1,3118.0,0.002]
[1765663697795,30.02112597,3118.1,3118.0,0.002]
[1765663698193,34.92737051,3118.1,3118.0,0.002]
[1765663698601,0.98597929,3118.0,3116.6,0.4887]
[1765663698805,4.68527531,3117.2,3116.6,0.4887]
[1765663699006,5.96130912,3117.2,3116.6,0.4887]
[1765663699411,6.45000912,3117.2,3116.6,0.4887]
[1765663700213,4.97274099,3117.2,3116.6,0.4887]
[1765663700411,0.30050628,3117.2,3117.1,1.15]
[1765663700610,0.80750628,3117.2,3117.1,1.15]
[1765663700907,0.507,3117.3,3117.1,1.15]
[1765663701110,0.29943513,3117.6,3117.2,0.4887]
[1765663701311,0.29943513,3117.5,3117.2,0.4887]
[1765663701782,0.29943513,3117.5,3117.4,0.479]
[1765663702189,0.29943513,3117.5,3117.4,0.9677]
[1765663703203,0.507,3117.6,3117.4,0.9677]
[1765663703409,0.80643513,3117.6,3117.5,0.9397]
[1765663703907,0.507,3117.6,3117.5,0.9397]
[1765663704082,0.80643513,3117.6,3117.5,0.9397]
[1765663704783,0.507,3117.6,3117.5,0.9397]
[1765663705004,0.80643513,3117.6,3117.5,0.9397]
[1765663705409,0.507,3117.6,3117.5,0.9397]
[1765663705612,0.80643513,3117.6,3117.5,0.9397]
[1765663705827,0.507,3117.6,3117.5,0.9397]
[1765663705982,0.80643513,3117.6,3117.5,0.9397]
[1765663706178,4.01403071,3117.6,3117.5,0.9397]
[1765663706381,4.7361757,3117.6,3117.5,0.4819]
[1765663706610,4.7361757,3117.6,3117.2,0.4982]
[1765663706916,3.51617065,3117.5,3117.2,0.4982]
[1765663707120,3.20771064,3117.5,3117.2,0.4982]
[1765663707810,0.29921006,3117.4,3117.1,0.002]
[1765663708189,0.29921006,3117.4,3117.1,0.5002]
[1765663708394,0.29921006,3117.4,3117.1,0.6993]
[1765663709608,3.90842346,3117.4,3117.1,0.002]
[1765663709778,3.6092134,3117.4,3117.1,0.002]
[1765663712413,0.2992293,3117.3,3117.1,0.002]
[1765663712626,3.70589589,3117.6,3117.3,0.4723]
[1765663712912,1.17685049,3117.5,3117.3,0.4723]
[1765663713113,0.2992609,3117.4,3117.3,0.9705]
[1765663713519,0.8062609,3117.5,3117.3,0.9705]
[1765663713909,0.8062609,3117.5,3117.4,0.4723]
[1765663715921,4.01395937,3117.5,3117.4,0.4723]
[1765663716122,4.73610646,3117.5,3117.4,0.4723]
[1765663716693,4.73610646,3117.5,3117.3,0.4982]
[1765663716920,0.2992609,3117.4,3117.1,0.6993]
[1765663717121,0.2992609,3117.3,3117.1,0.6993]
[1765663717320,0.2992609,3117.4,3117.2,0.4982]
[1765663717545,0.2992609,3117.3,3117.2,0.9705]
[1765663717712,0.2992609,3117.4,3117.3,0.4982]
[1765663717911,0.507,3118.2,3117.4,0.4723]
[1765663718218,0.29947019,3118.1,3117.4,0.4723]
[1765663718420,0.507,3118.2,3117.4,0.4723]
[1765663718421,0.30849507,3118.0,3117.5,0.4982]
[1765663718620,0.29947019,3117.9,3117.5,0.4982]
[1765663718794,0.80647019,3117.8,3117.5,0.4982]
[1765663718997,0.29947019,3117.7,3117.5,0.4982]
[1765663719226,0.29947019,3117.6,3117.3,0.4982]
[1765663719421,0.29947019,3117.7,3117.3,0.4982]
[1765663719725,0.29947019,3117.6,3117.3,0.4982]
[1765663719937,3.71439758,3117.8,3117.3,0.4982]
[1765663720104,0.29962569,3117.7,3117.5,0.4723]
[1765663720306,0.29962569,3117.6,3117.5,0.4723]
[1765663721207,0.29962569,3117.6,3117.3,0.4982]
[1765663721410,0.29979493,3117.5,3117.3,0.4982]
[1765663721611,4.40655841,3117.8,3117.3,0.4982]
[1765663721819,0.74045075,3117.7,3117.3,0.4982]
[1765663721998,0.29979491,3117.6,3117.3,0.4982]
[1765663722198,0.29979491,3117.5,3117.3,0.4982]
[1765663722399,0.44065584,3117.7,3117.3,0.4982]
[1765663722725,0.29989942,3117.6,3117.3,0.4982]
[1765663722927,0.29989942,3117.5,3117.3,0.4982]
[1765663723129,0.44065584,3117.7,3117.3,0.4982]
[1765663723293,0.29989942,3117.6,3117.3,0.4982]
[1765663723498,0.29989942,3117.5,3117.3,0.4982]
[1765663723715,0.29989942,3117.4,3117.3,0.4982]
[1765663724227,0.29989942,3117.4,3117.3,0.9705]
[1765663726526,0.30038013,3117.4,3117.3,0.9705]
[1765663727302,0.80738013,3117.4,3117.3,0.9705]
[1765663730036,0.80741492,3117.4,3117.3,0.9705]
[1765663732334,0.80741492,3117.4,3117.3,0.4723]
[1765663732642,0.80741492,3117.4,3117.1,0.6993]
[1765663732808,0.3094398,3117.3,3117.1,0.6993]
[1765663733008,0.30041492,3117.2,3117.1,0.6993]
[1765663733411,0.30041492,3117.2,3117.1,1.1716]
[1765663734617,0.30041492,3117.2,3117.1,0.002]
[1765663738324,0.30041492,3117.2,3117.1,0.4595]
[1765663738529,0.30041492,3117.2,3117.1,1.1343]
[1765663742252,3.5084221,3117.2,3117.1,0.002]
[1765663742439,4.37861388,3117.2,3117.1,0.002]
[1765663742745,4.95908917,3117.2,3117.1,0.002]
[1765663743050,26.74933917,3117.2,3117.1,0.002]
[1765663743248,31.43583491,3117.2,3117.1,0.002]
[1765663743418,0.58047529,3117.1,3115.9,0.6798]
[1765663743617,4.68649574,3116.8,3116.0,0.4908]
[1765663743844,0.30041492,3116.7,3116.0,0.4908]
[1765663744046,0.80741492,3116.6,3116.0,0.4908]
[1765663744246,0.30041492,3116.5,3116.0,0.4908]
[1765663744447,0.30041492,3116.4,3116.0,3.7000345]
[1765663744646,0.30041492,3116.3,3116.0,0.4908]
[1765663744950,0.30041492,3116.2,3116.0,0.4908]
[1765663745151,3.20876624,3116.5,3116.0,0.4908]